bitfinex/quotes_ETHUSD_20230702
["timestamp","ask_amount","ask_price","bid_price","bid_amount"]
[1688340187239,7.72018816,1937.5,1937.3,0.1]
[1688340188030,7.72018816,1937.5,1937.3,5.26178]
[1688340194337,7.72018816,1937.5,1937.3,6.304152]
[1688340196640,7.72018816,1937.5,1937.3,4.76178]
[1688340203653,2.55878816,1937.5,1937.1,2.0767]
[1688340203958,0.01823434,1937.4,1937.3,10.3236]
[1688340204152,7.72018816,1937.5,1937.3,10.3236]
[1688340205353,0.42263268,1937.8,1937.3,11.614062]
[1688340205553,8.75296516,1937.7,1937.3,14.194972]
[1688340205758,7.71963816,1937.7,1937.3,14.194972]
[1688340206125,7.71963816,1937.7,1937.3,18.655872]
[1688340208835,12.88048816,1937.7,1937.3,18.655872]
[1688340209624,12.88048816,1937.7,1937.3,17.36541]
[1688340209945,5.158,1937.5,1937.1,0.1]
[1688340210155,5.158,1937.5,1937.1,7.1949]
[1688340210156,12.88195816,1937.4,1937.1,7.1949]
[1688340211155,7.72034816,1937.4,1937.1,0.1]
[1688340211361,15.46272816,1937.4,1937.1,0.1]
[1688340213029,0.03365545,1937.3,1937.1,0.1]
[1688340213226,20.88298816,1937.2,1937.1,0.1]
[1688340213456,15.94398816,1937.2,1937.1,0.1]
[1688340213761,21.36298816,1937.2,1937.1,0.1]
[1688340214326,18.78194816,1937.2,1937.1,0.1]
[1688340215958,21.36298816,1937.2,1937.1,0.1]
[1688340222429,22.66298816,1937.2,1937.1,0.1]
[1688340222649,27.82506816,1937.2,1937.1,0.1]
[1688340225335,28.23147877,1937.2,1937.1,0.1]
[1688340228786,28.77099847,1937.2,1937.1,0.1]
[1688340229866,27.47099847,1937.2,1937.1,0.1]
[1688340230988,21.28939877,1937.2,1937.1,0.1]
[1688340232255,21.76939877,1937.2,1937.1,0.1]
[1688340235146,23.60790485,1937.2,1937.1,0.1]
[1688340238643,22.30890485,1937.2,1937.1,0.1]
[1688340245827,26.33390485,1937.2,1937.1,0.1]
[1688340245993,26.33390485,1937.2,1936.4,1.8869]
[1688340245994,5.419,1936.8,1936.4,1.8869]
[1688340246197,5.419,1936.3,1936.1,2.4813]
[1688340246410,15.47065816,1936.2,1936.1,0.1]
[1688340246808,15.95065816,1936.2,1936.1,0.1]
[1688340247635,16.15749116,1936.2,1936.1,0.1]
[1688340249569,15.67749116,1936.2,1936.1,0.1]
[1688340249743,13.09512116,1936.2,1936.1,0.1]
[1688340250804,5.371583,1936.2,1936.1,0.1]
[1688340250999,10.536333,1936.2,1936.1,0.1]
[1688340252707,13.118703,1936.2,1936.1,0.1]
[1688340253044,15.67749116,1936.2,1936.1,0.1]
[1688340253945,16.53239176,1936.2,1936.1,0.1]
[1688340254151,17.01239176,1936.2,1936.1,0.1]
[1688340254312,22.43139176,1936.2,1936.1,0.1]
[1688340265343,5.371583,1936.2,1936.1,0.1]
[1688340265542,0.206833,1936.2,1936.1,1.03]
[1688340265750,10.536333,1936.2,1936.1,1.03]
[1688340266534,10.536333,1936.2,1936.1,0.1]
[1688340268116,13.09512116,1936.2,1936.1,0.1]
[1688340269258,2.76562116,1936.2,1936.1,5.26502]
[1688340269422,7.93037116,1936.2,1936.1,0.1]
[1688340269627,2.76562116,1936.2,1936.1,0.1]
[1688340269839,7.93037116,1936.2,1936.1,0.1]
[1688340270552,0.206833,1936.2,1936.0,5.16515]
[1688340270855,5.371623,1936.2,1936.1,1.449515]
[1688340273162,10.536413,1936.2,1936.1,0.933]
[1688340274959,5.371623,1936.2,1936.1,6.09802]
[1688340275118,5.371623,1936.2,1936.1,0.933]
[1688340275321,0.206833,1936.2,1936.1,0.933]
[1688340276323,5.371583,1936.2,1936.1,0.933]
[1688340276742,0.206833,1936.2,1936.1,1.542814]
[1688340277067,5.16462,1936.3,1936.1,6.707834]
[1688340277265,10.32934,1936.3,1936.2,0.93]
[1688340283585,2.0,1936.0,1935.9,0.1]
[1688340283746,25.95362816,1936.0,1935.9,0.1]
[1688340283956,30.89053899,1936.0,1935.9,0.1]
[1688340287197,33.98153899,1936.0,1935.9,0.1]
[1688340287499,6.78924416,1935.9,1935.8,0.1]
[1688340287849,25.78579531,1935.9,1935.8,0.1]
[1688340290693,19.88679531,1935.9,1935.8,0.1]
[1688340291768,18.51655115,1935.9,1935.8,0.1]
[1688340292302,18.99655115,1935.9,1935.8,0.1]
[1688340293513,24.16210115,1935.9,1935.8,0.1]
[1688340294302,32.67210115,1935.9,1935.8,0.1]
[1688340295386,29.58110115,1935.9,1935.8,0.1]
[1688340298086,29.58110115,1935.9,1935.7,0.1]
[1688340299692,8.45778816,1935.8,1935.7,0.1]
[1688340299898,21.41623115,1935.8,1935.7,0.1]
[1688340305895,22.35123115,1935.8,1935.7,0.1]
[1688340306090,22.35123115,1935.8,1935.6,0.1]
[1688340306334,7.97778816,1935.7,1935.6,0.1]
[1688340306621,21.41688115,1935.7,1935.6,0.1]
[1688340307992,15.99788115,1935.7,1935.6,0.1]
[1688340308425,15.51788115,1935.7,1935.6,0.1]
[1688340310265,0.78981888,1935.8,1935.6,0.1]
[1688340310395,2.58255,1936.1,1935.7,0.03717799]
[1688340310593,2.58255,1936.1,1935.7,5.16604]
[1688340310594,5.16528,1936.0,1935.7,5.16604]
[1688340310792,5.16528,1936.0,1935.8,0.516604]
[1688340311199,5.16528,1936.0,1935.9,0.932]
[1688340312842,10.33045,1936.1,1935.9,0.932]
[1688340313007,5.1652,1936.1,1935.9,0.932]
[1688340313393,10.33045,1936.1,1935.9,0.932]
[1688340313617,5.16488,1936.2,1935.9,0.932]
[1688340313824,5.16488,1936.2,1936.0,0.933]
[1688340314022,10.32934,1936.3,1936.1,0.935]
[1688340315730,12.91158,1936.3,1936.1,0.935]
[1688340316098,5.16465,1936.3,1936.1,0.935]
[1688340316428,5.16465,1936.3,1936.2,0.935]
[1688340316819,5.16437,1936.4,1936.2,0.935]
[1688340317192,9.197719,1936.6,1936.2,0.935]
[1688340317396,2.55878816,1936.5,1936.3,0.935]
[1688340317631,0.42028002,1936.7,1936.4,0.931]
[1688340317803,10.32717,1936.7,1936.3,10.32879]
[1688340318007,10.32715,1936.7,1936.4,1.032879]
[1688340318206,5.16302,1936.9,1936.6,0.935]
[1688340318416,5.16334,1936.8,1936.7,0.97767965]
[1688340319023,10.32665,1936.8,1936.7,0.04267965]
[1688340320635,12.90822,1936.8,1936.7,0.04267965]
[1688340322639,12.90822,1936.8,1936.6,0.928]
[1688340322815,12.90822,1936.8,1936.7,0.03536486]
[1688340323017,10.32665,1936.8,1936.7,0.03536486]
[1688340326743,10.27665,1936.8,1936.7,0.03536486]
[1688340327331,10.27665,1936.8,1936.6,0.96336486]
[1688340327532,5.16301,1936.9,1936.7,0.935]
[1688340327733,5.16301,1936.9,1936.8,0.04214023]
[1688340327922,5.16288,1936.9,1936.8,0.04214023]
[1688340329133,10.32558,1937.0,1936.8,0.04214023]
[1688340329461,12.88436816,1937.0,1936.8,0.04214023]
[1688340331430,2.55878816,1936.9,1936.8,0.04214023]
[1688340331628,15.46598816,1936.9,1936.4,7.62562]
[1688340331848,12.88454816,1936.9,1936.4,13.84536]
[1688340332178,15.46598816,1936.9,1936.4,13.84536]
[1688340332381,15.46598816,1936.9,1936.4,6.09912]
[1688340332670,15.46598816,1936.9,1936.5,0.928]
[1688340332842,15.46598816,1936.9,1936.5,6.701162]
[1688340333041,15.46598816,1936.9,1936.5,1.537212]
[1688340333237,12.88454816,1936.9,1936.5,1.537212]
[1688340333842,10.32576,1936.9,1936.5,6.701162]
[1688340334041,5.16288,1936.9,1936.6,0.95893764]
[1688340334331,5.16288,1936.9,1936.6,2.1485426]
[1688340334556,5.16288,1936.9,1936.6,7.3122026]
[1688340334761,2.55878816,1936.8,1936.6,0.03093764]
[1688340334962,2.55878816,1936.8,1936.4,0.931]
[1688340334963,10.32684,1936.7,1936.4,0.931]
[1688340335130,10.32684,1936.7,1936.5,0.03251436]
[1688340335329,10.32684,1936.7,1936.4,0.931]
[1688340335567,10.32684,1936.7,1936.4,2.289809]
[1688340336134,10.32684,1936.7,1936.5,0.02673269]
[1688340336366,10.32684,1936.7,1936.4,2.289809]
[1688340336642,10.32684,1936.7,1936.5,0.935]
[1688340340864,5.16342,1936.7,1936.6,0.931]
[1688340341066,5.1633,1936.8,1936.6,0.931]
[1688340341235,5.16274,1937.0,1936.7,0.931]
[1688340341433,5.16263,1937.0,1936.8,0.95674635]
[1688340341635,5.16273,1937.0,1936.8,0.02874635]
[1688340341833,10.32546,1937.0,1936.7,6.289096]
[1688340342275,10.32546,1937.0,1936.8,0.02635351]
[1688340342568,10.32546,1937.0,1936.8,0.63154495]
[1688340342772,5.16251,1937.1,1936.8,16.37679495]
[1688340342973,10.325,1937.1,1937.0,0.931]
[1688340343349,5.16249,1937.1,1937.0,0.931]
[1688340343548,10.32438,1937.2,1937.0,1.540387]
[1688340343745,10.32393,1937.3,1937.1,0.935]
[1688340344275,12.90484,1937.3,1937.1,0.935]
[1688340344447,12.90484,1937.3,1937.0,0.935]
[1688340344962,12.90484,1937.3,1936.9,0.932]
[1688340345560,12.90484,1937.3,1937.0,0.93]
[1688340345950,10.32393,1937.3,1937.0,0.93]
[1688340346968,10.32393,1937.3,1937.0,1.539283]
[1688340348148,10.32393,1937.3,1937.1,0.931]
[1688340351147,11.42393,1937.3,1937.1,0.931]
[1688340351800,11.42393,1937.3,1937.2,0.93]
[1688340351801,6.26193,1937.3,1937.2,0.93]
[1688340351968,1.1,1937.3,1937.2,0.93]
[1688340354385,6.26182,1937.3,1937.2,0.93]
[1688340354587,11.42364,1937.3,1937.0,6.09756]
[1688340354786,11.42364,1937.3,1937.0,7.765492]
[1688340356870,11.42364,1937.3,1937.0,12.928112]
[1688340363378,11.42364,1937.3,1937.0,6.830492]
[1688340363705,14.00455,1937.3,1937.0,6.830492]
[1688340364259,14.00455,1937.3,1936.8,3.83964495]
[1688340364462,14.00455,1937.3,1936.5,6.0988]
[1688340364463,12.906,1937.1,1936.5,6.0988]
[1688340364660,15.46478816,1937.1,1936.6,7.60866]
[1688340364888,15.46478816,1937.1,1936.6,12.77226]
[1688340365069,15.46478816,1937.1,1936.6,15.3541]
[1688340367460,15.46478816,1937.1,1936.6,16.2891]
[1688340367656,15.46478816,1937.1,1936.8,5.16312]
[1688340369404,15.46478816,1937.1,1936.8,5.168316]
[1688340371697,2.55878816,1937.0,1936.8,0.005196]
[1688340371903,12.9072,1936.9,1936.8,0.005196]
[1688340372120,15.46598816,1936.9,1936.8,0.005196]
[1688340377479,15.46598816,1936.9,1935.9,5.16534]
[1688340377480,26.81998816,1936.9,1935.9,5.16534]
[1688340377801,12.91015,1936.5,1935.9,10.33089]
[1688340378008,15.46893816,1936.5,1935.9,10.33089]
[1688340378211,15.46893816,1936.5,1936.0,1.033089]
[1688340378392,15.46893816,1936.5,1936.0,6.198319]
[1688340379205,15.46893816,1936.5,1936.0,1.033089]
[1688340380937,15.46893816,1936.5,1935.9,2.70390895]
[1688340381139,15.46893816,1936.5,1935.9,7.86930895]
[1688340381482,15.46893816,1936.5,1935.9,2.70390895]
[1688340381749,15.46893816,1936.5,1935.9,7.86937895]
[1688340381925,15.46893816,1936.5,1935.9,13.03492895]
[1688340382277,15.46893816,1936.5,1936.0,1.3034929]
[1688340384606,15.46893816,1936.5,1936.0,6.4687129]
[1688340385739,15.46893816,1936.5,1936.0,1.3034929]
[1688340385918,15.46893816,1936.5,1936.0,6.4687429]
[1688340387944,15.46893816,1936.5,1936.1,0.935]
[1688340388428,15.46893816,1936.5,1936.1,6.10001]
[1688340388601,15.46893816,1936.5,1936.2,0.610001]
[1688340392704,1.033914,1936.6,1936.2,6.709731]
[1688340393040,5.16325,1936.8,1936.4,0.933]
[1688340393205,2.55878816,1936.8,1936.4,0.933]
[1688340393537,2.55878816,1936.8,1936.4,6.09715]
[1688340393538,6.197003,1936.8,1936.4,6.09715]
[1688340393696,10.32638,1936.8,1936.5,0.609715]
[1688340395827,6.196739,1936.9,1936.5,5.773615]
[1688340396025,6.196739,1936.9,1936.5,11.872565]
[1688340396026,5.16321,1936.8,1936.5,11.872565]
[1688340396222,5.16321,1936.8,1936.6,1.1872565]
[1688340398962,10.32642,1936.8,1936.6,1.1872565]
[1688340403382,5.16321,1936.8,1936.6,1.1872565]
[1688340405715,5.16321,1936.8,1936.4,2.4244]
[1688340405716,12.90799,1936.8,1936.4,2.4244]
[1688340406715,12.90799,1936.8,1936.4,7.58855]
[1688340414323,12.90799,1936.8,1936.4,12.75277]
[1688340416423,10.32642,1936.8,1936.4,12.75277]
[1688340417754,10.32642,1936.8,1936.4,13.68077]
[1688340417960,10.32642,1936.8,1936.5,6.531987]
[1688340418320,5.16321,1936.8,1936.5,6.531987]
[1688340420324,10.32608,1936.9,1936.5,6.531987]
[1688340420524,7.72182816,1936.9,1936.5,6.531987]
[1688340421164,12.88495816,1936.9,1936.5,6.531987]
[1688340421565,7.72182816,1936.9,1936.5,6.531987]
[1688340421920,10.32617,1936.9,1936.6,0.6531987]
[1688340422125,12.90761,1936.9,1936.6,0.6531987]
[1688340423167,10.32617,1936.9,1936.6,0.6531987]
[1688340424064,10.32617,1936.9,1936.5,6.531937]
[1688340424278,10.32617,1936.9,1936.5,11.695777]
[1688340424968,10.32617,1936.9,1936.5,6.531917]
[1688340426751,10.32617,1936.9,1936.5,11.950917]
[1688340428838,10.32617,1936.9,1936.5,17.114867]
[1688340429163,10.32617,1936.9,1936.6,1.7114867]
[1688340430468,5.16304,1936.9,1936.6,1.7114867]
[1688340430645,5.16304,1936.9,1936.6,6.8751567]
[1688340430646,10.32617,1936.9,1936.6,6.8751567]
[1688340438397,1.1,1937.3,1936.8,6.354]
[1688340438601,1.1,1937.3,1937.0,0.935]
[1688340438815,1.1,1937.3,1937.0,6.09756]
[1688340438982,1.1,1937.3,1937.0,11.26018]
[1688340439389,1.1,1937.3,1937.1,0.933]
[1688340439601,1.1,1937.3,1937.1,6.09528]
[1688340439803,1.1,1937.3,1937.1,7.221064]
[1688340440135,1.1,1937.3,1937.1,6.288064]
[1688340442037,1.1,1937.3,1937.1,11.450414]
[1688340451290,1.1,1937.3,1937.1,10.32463]
[1688340455459,1.1,1937.3,1937.1,12.9058]
[1688340460194,1.05,1937.3,1937.1,10.32463]
[1688340460512,1.05,1937.3,1937.2,0.02671294]
[1688340460694,1.05,1937.3,1937.1,10.32463]
[1688340460871,1.05,1937.3,1937.2,1.06521832]
[1688340462173,1.05,1937.3,1937.2,6.22729832]
[1688340462391,6.21182,1937.3,1937.2,0.03275532]
[1688340462686,6.21182,1937.3,1936.9,2.3918]
[1688340462687,11.37364,1937.3,1936.9,2.3918]
[1688340462888,11.37364,1937.3,1936.9,12.71751]
[1688340463067,6.21182,1937.3,1936.9,9.2189714]
[1688340463801,6.21182,1937.3,1936.9,14.3818514]
[1688340464500,6.21182,1937.3,1936.9,16.9632914]
[1688340477614,6.21182,1937.3,1936.9,14.3818514]
[1688340479903,6.21182,1937.3,1936.9,16.9632914]
[1688340480615,1.05,1937.3,1936.9,16.9632914]
[1688340480791,1.05,1937.3,1937.0,1.69632914]
[1688340481118,1.05,1937.3,1937.1,10.3247]
[1688340484088,1.05,1937.3,1937.1,5.16235]
[1688340485322,6.21183,1937.3,1937.1,5.16235]
[1688340487028,6.21183,1937.3,1937.1,10.3247]
[1688340487401,6.21183,1937.3,1937.1,5.16235]
[1688340488843,1.05,1937.3,1937.2,6.354]
[1688340489013,1.05,1937.3,1937.2,19.30919989]
[1688340489210,1.05,1937.3,1937.2,19.52693971]
[1688340489413,5.158,1937.5,1937.4,5.419]
[1688340489736,5.158,1937.5,1937.4,18.32287]
[1688340489947,5.158,1937.5,1937.4,20.46060971]
[1688340490301,5.158,1937.5,1937.4,23.01939787]
[1688340490637,5.158,1937.5,1937.4,22.08439787]
[1688340490887,5.158,1937.5,1937.4,24.47844534]
[1688340491929,5.158,1937.5,1937.4,21.91965718]
[1688340493258,0.41387899,1938.2,1937.4,25.89344534]
[1688340493450,6.85729,1938.3,1937.8,6.35]
[1688340493615,6.85729,1938.3,1937.8,11.51039]
[1688340493616,7.271169,1938.3,1937.8,11.51039]
[1688340494349,12.430409,1938.3,1937.8,16.67088]
[1688340494507,12.430409,1938.3,1937.8,19.25112]
[1688340494722,12.430409,1938.3,1937.7,11.25617]
[1688340494921,15.009989,1938.3,1937.8,6.285927]
[1688340495129,15.009989,1938.3,1937.8,13.924517]
[1688340496433,12.430409,1938.3,1937.8,21.923757]
[1688340498162,14.98919716,1938.3,1937.8,3.603717]
[1688340498320,17.56877716,1938.3,1937.8,5.16047]
[1688340498656,17.56877716,1938.3,1937.7,10.3212]
[1688340500271,7.271119,1938.3,1937.7,21.54787]
[1688340500471,7.271119,1938.3,1937.8,8.505787]
[1688340500472,12.430339,1938.3,1937.8,8.505787]
[1688340500761,7.271039,1938.3,1937.9,12.90029]
[1688340501347,15.009919,1938.3,1937.9,5.16009]
[1688340502024,5.15974,1938.1,1937.8,10.32076]
[1688340502233,5.15974,1938.1,1937.8,12.382003]
[1688340503574,10.31948,1938.1,1937.6,5.161]
[1688340503749,5.16024,1937.9,1937.5,18.06617]
[1688340504693,5.17718633,1938.0,1937.5,20.64681]
[1688340507705,12.0341,1938.1,1937.6,6.35]
[1688340507857,12.0341,1938.1,1937.7,5.79562]
[1688340508177,6.87425,1938.1,1937.7,5.79562]
[1688340508394,6.87425,1938.1,1937.7,10.95637]
[1688340509366,12.03408,1938.1,1937.7,10.95637]
[1688340511406,12.03408,1938.1,1937.5,2.3249]
[1688340511407,18.10570816,1938.1,1937.5,2.3249]
[1688340511558,2.55878816,1938.0,1937.3,5.1617]
[1688340511756,2.55878816,1938.0,1937.3,7.56311]
[1688340511757,10.32102,1937.8,1937.3,7.56311]
[1688340512289,10.32102,1937.8,1937.3,12.72493]
[1688340512514,10.32102,1937.8,1937.3,14.29754167]
[1688340513824,10.32102,1937.8,1937.3,16.87845167]
[1688340515084,12.90126,1937.8,1937.3,3.97391167]
[1688340515286,15.46004816,1937.8,1937.3,2.4013]
[1688340515601,10.3226,1937.5,1937.1,5.1622]
[1688340515802,10.3226,1937.5,1937.1,12.72215]
[1688340515966,10.3226,1937.5,1937.2,0.80439485]
[1688340516163,10.3226,1937.5,1937.2,5.96638485]
[1688340517097,5.16129,1937.5,1937.2,11.12846485]
[1688340517515,1.6654,1937.7,1937.2,16.54746485]
[1688340517719,5.16049,1937.8,1937.3,6.354]
[1688340517880,5.16049,1937.8,1937.5,5.16123]
[1688340518506,12.87976816,1937.8,1937.4,0.6354]
[1688340518711,12.87976816,1937.8,1937.3,5.16167]
[1688340518922,12.87976816,1937.8,1937.3,10.32334]
[1688340519224,5.16,1938.0,1937.5,18.32167]
[1688340519905,5.16,1938.0,1937.5,19.25667]
[1688340520104,5.16,1938.0,1937.6,1.925667]
[1688340520315,5.16,1938.0,1937.7,10.32141]
[1688340521309,5.16,1938.0,1937.8,5.419]
[1688340521511,5.16,1938.0,1937.9,12.90055]
[1688340525906,5.16,1938.0,1937.9,18.31955]
[1688340526215,5.16,1938.0,1937.9,20.245005]
[1688340528929,5.16,1938.0,1937.9,21.180005]
[1688340533535,1.032744,1938.8,1938.2,0.5]
[1688340533830,2.2,1938.9,1938.7,8.47778816]
[1688340533997,2.1118,1938.9,1938.8,30.37805882]
[1688340534198,2.1118,1938.9,1938.8,32.98494249]
[1688340538002,2.1118,1938.9,1938.8,32.93684698]
[1688340538227,2.1118,1938.9,1938.8,33.86784698]
[1688340538429,6.93292,1939.8,1938.9,0.5]
[1688340538430,1.7776,1939.8,1938.9,0.5]
[1688340538632,1.7776,1939.8,1939.4,5.419]
[1688340538834,2.2,1939.9,1939.5,10.31186]
[1688340538835,7.35493,1939.9,1939.5,10.31186]
[1688340539027,7.76547268,1939.9,1939.5,10.31186]
[1688340540422,12.92037268,1939.9,1939.5,10.31186]
[1688340540748,9.32833392,1939.9,1939.5,10.31186]
[1688340541647,14.43323392,1939.9,1939.5,10.31186]
[1688340541847,19.56947208,1939.9,1939.3,5.15635]
[1688340542020,12.88886,1939.7,1939.3,5.15635]
[1688340542224,12.88886,1939.7,1939.3,10.31284]
[1688340542425,14.52884145,1939.7,1939.3,10.31284]
[1688340542633,11.95110145,1939.7,1939.3,10.31284]
[1688340543021,5.15556,1939.7,1939.3,15.73184]
[1688340543367,16.09740392,1939.9,1939.3,18.31008]
[1688340543721,16.09740392,1939.9,1939.4,0.02762588]
[1688340543922,16.09740392,1939.9,1939.5,10.31168]
[1688340544471,17.02940392,1939.9,1939.5,10.31168]
[1688340544623,1.70294039,1939.8,1939.6,0.02855188]
[1688340544821,6.85823039,1939.8,1939.6,5.15567]
[1688340545165,12.01352039,1939.8,1939.5,5.15583]
[1688340545327,11.86352039,1939.8,1939.5,5.15583]
[1688340545529,5.15529,1939.8,1939.5,5.15583]
[1688340546428,5.15529,1939.8,1939.5,10.31179]
[1688340547526,5.15529,1939.8,1939.5,5.15583]
[1688340548263,10.31058,1939.8,1939.5,5.15583]
[1688340548965,5.15529,1939.8,1939.5,5.15583]
[1688340549972,10.31058,1939.8,1939.6,0.02827691]
[1688340550131,10.31058,1939.8,1939.5,5.15583]
[1688340550331,5.15529,1939.8,1939.5,5.15583]
[1688340551265,10.31058,1939.8,1939.5,10.31179]
[1688340551641,10.31058,1939.8,1939.6,0.02746061]
[1688340551965,10.31058,1939.8,1939.5,10.31179]
[1688340552153,12.88816,1939.8,1939.3,5.15637]
[1688340552360,12.88816,1939.8,1939.3,15.73178]
[1688340552361,14.485476,1939.8,1939.3,15.73178]
[1688340554143,14.485476,1939.8,1939.3,18.30669324]
[1688340554357,12.88816,1939.8,1939.3,18.30669324]
[1688340557746,0.01716633,1939.7,1939.2,10.99812964]
[1688340558053,10.31155,1939.6,1939.2,15.73245]
[1688340560860,10.31155,1939.6,1939.2,18.31083]
[1688340561077,10.31155,1939.6,1939.2,20.399764]
[1688340562986,5.15572,1939.6,1939.2,20.399764]
[1688340568810,10.32834633,1939.7,1939.2,20.399764]
[1688340568970,5.17273633,1939.7,1939.2,20.399764]
[1688340569566,0.01716633,1939.7,1939.2,20.399764]
[1688340569873,0.01716633,1939.7,1939.3,2.0399764]
[1688340570077,0.01716633,1939.7,1939.4,10.31236]
[1688340571002,0.01716633,1939.7,1939.4,12.89047]
[1688340574274,11.85151633,1939.8,1939.4,12.89047]
[1688340574781,6.69619633,1939.8,1939.4,12.89047]
[1688340577415,11.85151633,1939.8,1939.4,12.89047]
[1688340577776,18.64578412,1939.8,1939.4,10.31236]
[1688340578005,5.1557,1939.6,1939.4,5.15618]
[1688340578402,10.3117,1939.6,1939.4,5.15618]
[1688340579675,15.4674,1939.6,1939.2,5.15665]
[1688340579880,18.039321,1939.6,1939.2,5.15665]
[1688340580179,18.039321,1939.6,1939.2,10.31319]
[1688340580523,19.685171,1939.6,1939.2,10.31319]
[1688340580721,19.685171,1939.6,1939.2,5.15654]
[1688340580892,19.685171,1939.6,1939.2,10.3133]
[1688340584935,18.04525,1939.6,1939.2,10.3133]
[1688340585809,15.4674,1939.6,1939.2,12.89168]
[1688340586881,10.3117,1939.6,1939.2,12.89168]
[1688340588896,5.156,1939.6,1939.2,12.89168]
[1688340599960,5.156,1939.6,1939.2,18.31068]
[1688340600166,5.156,1939.6,1939.4,10.31246]
[1688340601815,5.156,1939.6,1939.4,5.15623]
[1688340602521,10.31176,1939.6,1939.4,5.15623]
[1688340604463,10.31176,1939.6,1939.3,2.3787]
[1688340604666,15.46752,1939.6,1939.3,2.3787]
[1688340604959,17.272045,1939.6,1939.3,7.53512]
[1688340605170,17.272045,1939.6,1939.3,5.15642]
[1688340605467,17.272045,1939.6,1939.3,10.31291]
[1688340606570,5.156,1939.6,1939.3,12.89115]
[1688340608052,10.31172,1939.6,1939.3,12.89115]
[1688340614354,5.156,1939.6,1939.3,12.89115]
[1688340614857,10.31173,1939.6,1939.3,12.89115]
[1688340615394,5.156,1939.6,1939.3,12.89115]
[1688340615583,5.156,1939.6,1939.3,14.953745]
[1688340616101,5.156,1939.6,1939.3,12.375505]
[1688340616408,15.46747,1939.6,1939.3,10.31291]
[1688340616759,10.3117,1939.6,1939.3,10.31291]
[1688340617859,10.3117,1939.6,1939.3,12.89115]
[1688340618080,15.4674,1939.6,1939.3,10.31291]
[1688340618264,15.4674,1939.6,1939.3,5.15642]
[1688340618462,14.9674,1939.6,1939.3,10.31291]
[1688340619101,9.8117,1939.6,1939.3,10.31291]
[1688340620669,9.8117,1939.6,1939.3,12.89115]
[1688340621805,4.656,1939.6,1939.3,12.89115]
[1688340636611,12.37055816,1939.6,1939.3,12.89115]
[1688340637315,14.12315798,1939.6,1939.3,10.31291]
[1688340637520,2.0,1939.3,1938.7,5.15791]
[1688340637728,2.0,1939.3,1938.6,7.6444]
[1688340637729,18.02958816,1939.2,1938.6,7.6444]
[1688340638024,10.31478,1939.0,1938.6,2.4863]
[1688340638183,12.87356816,1939.0,1938.6,2.4863]
[1688340638686,15.45220816,1939.0,1938.6,2.4863]
[1688340639093,2.55878816,1938.9,1938.5,5.15862]
[1688340639296,5.15788,1938.8,1938.5,5.15862]
[1688340639513,7.71666816,1938.8,1938.5,5.15862]
[1688340640014,12.87454816,1938.8,1938.5,5.15862]
[1688340640879,15.45345816,1938.8,1938.5,5.15862]
[1688340641426,15.45345816,1938.8,1938.5,5.10862]
[1688340641635,12.87454816,1938.8,1938.5,5.10862]
[1688340641931,6.96011882,1939.1,1938.5,13.873288]
[1688340642074,7.71613816,1939.0,1938.5,16.193888]
[1688340642718,7.71613816,1939.0,1938.5,16.21042831]
[1688340643106,12.87348816,1939.0,1938.5,16.21042831]
[1688340644227,2.57852,1939.1,1938.6,7.04004283]
[1688340644228,5.15711,1939.1,1938.6,7.04004283]
[1688340644436,1.6989,1939.2,1938.7,19.26549861]
[1688340644599,1.6989,1939.2,1938.8,2.3739]
[1688340644794,1.6989,1939.2,1938.8,12.68939]
[1688340645549,1.6989,1939.2,1938.8,22.85119686]
[1688340645850,5.15608,1939.5,1938.8,22.85119686]
[1688340645851,4.656,1939.6,1939.1,6.349]
[1688340646004,14.96764,1939.6,1939.2,10.31328]
[1688340646240,9.81178,1939.6,1939.2,10.31328]
[1688340646408,14.96764,1939.6,1939.2,13.075355]
[1688340646608,14.96764,1939.6,1939.2,12.144355]
[1688340653071,17.54549,1939.6,1939.2,14.523055]
[1688340657249,17.54549,1939.6,1939.2,7.53533]
[1688340657449,17.54549,1939.6,1939.2,2.3787]
[1688340657656,20.10427816,1939.6,1939.1,0.0165352]
[1688340658040,2.55878816,1939.5,1939.0,2.3486]
[1688340658229,10.31266,1939.4,1939.0,2.3486]
[1688340658427,15.44955816,1939.4,1939.0,2.3486]
[1688340659362,15.44955816,1939.4,1939.0,7.50587]
[1688340660659,15.44955816,1939.4,1939.0,12.66316]
[1688340663093,7.71508816,1939.4,1939.0,12.66316]
[1688340665799,2.55878816,1939.4,1939.0,12.66316]
[1688340666099,2.55878816,1939.4,1939.0,15.2418]
[1688340666505,6.3485,1939.6,1939.0,22.442857]
[1688340666668,4.656,1939.6,1939.0,23.375857]
[1688340667198,4.656,1939.6,1939.3,12.8911]
[1688340671461,4.656,1939.6,1939.3,18.3101]
[1688340671602,4.656,1939.6,1939.5,5.15596]
[1688340671802,4.656,1939.6,1939.5,10.31192]
[1688340673150,4.656,1939.6,1939.5,5.15596]
[1688340673446,4.656,1939.6,1939.4,10.31211]
[1688340673797,4.656,1939.6,1939.4,5.15605]
[1688340673998,6.19416426,1939.6,1939.4,10.31228]
[1688340674919,4.656,1939.6,1939.4,12.89039]
[1688340679060,4.656,1939.6,1939.4,5.15605]
[1688340679262,9.81173,1939.6,1939.4,10.31228]
[1688340680736,4.656,1939.6,1939.4,10.31228]
[1688340685381,4.656,1939.6,1939.4,12.89039]
[1688340685683,4.656,1939.6,1939.4,14.957649]
[1688340686592,1.16345535,1940.1,1940.0,0.5]